bitfinex/quotes_SOLUSD_20260311
["timestamp","ask_amount","ask_price","bid_price","bid_amount"]
[1773232548909,0.93281198,85.009,84.981,1.05912035]
[1773232550810,0.93281198,85.009,84.982,11.76719775]
[1773232551027,0.93281198,85.009,84.982,12.8697799]
[1773232551214,0.93281198,85.009,84.983,1.10258215]
[1773232552425,12.69632183,85.009,84.983,1.10258215]
[1773232552625,0.92962421,85.008,84.983,1.10258215]
[1773232553135,0.92962421,85.008,84.984,11.76692083]
[1773232553427,0.92962421,85.008,84.985,1.10258215]
[1773232553723,11.7637371,85.007,84.985,1.10258215]
[1773232553909,0.92962421,85.008,84.985,1.10258215]
[1773232554110,3.1028015,85.01,84.985,1.10258215]
[1773232555712,0.92779808,85.008,84.986,11.76664391]
[1773232556026,0.92779808,85.008,84.986,42.28583585]
[1773232556213,0.92779808,85.008,84.987,1.05895433]
[1773232556415,0.92661535,85.019,84.987,1.05895433]
[1773232556615,3.1028015,85.01,84.987,1.05895433]
[1773232558118,0.92661535,85.019,84.989,1.05895433]
[1773232559131,0.92661535,85.019,84.99,11.76609012]
[1773232559316,0.92661535,85.019,84.991,1.05895433]
[1773232559631,0.14216157,85.04,84.991,1.05895433]
[1773232559632,11.75917215,85.04,84.991,1.05895433]
[1773232559831,12.68406387,85.04,85.001,1.05895433]
[1773232560133,3.1028015,85.04,85.001,1.05895433]
[1773232560520,0.92433032,85.039,85.011,1.05895433]
[1773232560828,47.01710006,85.076,84.991,1.05895433]
[1773232560829,0.92433032,85.029,84.991,1.05895433]
[1773232561213,0.92433032,85.029,84.993,1.05895433]
[1773232562413,3.1028015,85.03,84.995,1.05895433]
[1773232562615,104.85189308,85.043,85.011,1.05895433]
[1773232563028,103.92866628,85.043,85.011,1.05895433]
[1773232563415,4.0260283,85.05,85.011,1.05895433]
[1773232563416,0.9232268,85.05,85.011,1.05895433]
[1773232563617,11.75744306,85.053,85.011,1.05895433]
[1773232563817,0.92268452,85.056,85.021,1.05895433]
[1773232564221,3.1028015,85.06,85.021,1.05895433]
[1773232564417,3.1028015,85.06,85.001,0.14216157]
[1773232564418,0.92214848,85.075,85.04,3.1028015]
[1773232564621,0.92214848,85.079,85.041,1.05895433]
[1773232564838,0.1,85.1,85.022,88.21246264]
[1773232564839,0.92214848,85.086,85.051,1.05895433]
[1773232565022,0.1,85.09,85.061,1.05895433]
[1773232566227,0.1,85.1,85.071,1.05895433]
[1773232566540,0.1,85.1,85.073,1.05895433]
[1773232568331,0.1,85.1,85.075,1.05895433]
[1773232568516,0.1,85.1,85.081,1.05895433]
[1773232568945,0.1,85.1,85.074,11.75447257]
[1773232569115,0.92006517,85.099,85.074,11.75447257]
[1773232569318,3.2028015,85.1,85.031,1.05895433]
[1773232569319,0.91955921,85.079,85.031,1.05895433]
[1773232569533,3.1028015,85.06,85.031,1.05895433]
[1773232569719,0.91955921,85.069,85.032,1.05895433]
[1773232569925,3.1028015,85.06,85.032,1.05895433]
[1773232570129,0.91955921,85.079,85.032,1.05895433]
[1773232570327,3.1028015,85.07,85.032,1.05895433]
[1773232570538,3.1028015,85.07,85.034,1.05895433]
[1773232571024,0.91905906,85.069,85.034,1.05895433]
[1773232571419,3.1028015,85.06,85.033,41.16049063]
[1773232571642,0.14216157,85.076,85.026,1.05895433]
[1773232571643,3.1028015,85.05,85.026,1.05895433]
[1773232571834,0.91856465,85.049,85.023,11.76146066]
[1773232572546,11.75806603,85.048,85.019,11.76207671]
[1773232572839,4.02087743,85.03,85.002,1.05895433]
[1773232573241,3.1028015,85.04,85.002,1.05895433]
[1773232573540,7.74879353,85.04,85.002,1.05895433]
[1773232573722,7.74879353,85.03,85.002,1.05895433]
[1773232573922,0.91759282,85.039,85.002,1.05895433]
[1773232574328,7.74879353,85.03,85.002,1.05895433]
[1773232574534,7.74879353,85.03,85.004,1.05895433]
[1773232574723,0.91711526,85.039,85.004,1.05895433]
[1773232575719,7.74879353,85.04,85.004,1.05895433]
[1773232576845,7.74879353,85.04,85.003,41.17501735]
[1773232576846,0.91617653,85.038,85.006,1.05895433]
[1773232577949,29.39472546,85.05,85.005,41.17404858]
[1773232577950,103.92866628,85.059,85.011,1.05895433]
[1773232578258,11.75668367,85.058,85.031,1.05895433]
[1773232578545,103.92866628,85.059,85.031,1.05895433]
[1773232578750,0.91525923,85.076,85.04,7.74879353]
[1773232578942,0.91525923,85.076,85.041,1.05895433]
[1773232579541,0.91480848,85.084,85.051,1.05895433]
[1773232580956,0.91480848,85.084,85.05,7.74879353]
[1773232580957,11.7527631,85.087,85.053,1.06998436]
[1773232581252,0.91392243,85.086,85.053,1.06998436]
[1773232582145,0.91348703,85.079,85.041,11.75903387]
[1773232582448,0.91348703,85.079,85.042,1.06998436]
[1773232584058,0.91263116,85.077,85.043,11.75875733]
[1773232584352,0.91263116,85.077,85.043,12.82874169]
[1773232586049,12.66599109,85.076,85.044,1.06998436]
[1773232586236,0.91179485,85.075,85.044,1.06998436]
[1773232587162,0.91138388,85.069,85.037,1.06998436]
[1773232587348,0.91097764,85.049,85.02,11.76181088]
[1773232587552,0.91097764,85.049,85.016,1.06998436]
[1773232587553,7.74830185,85.04,85.016,1.06998436]
[1773232587855,0.91097764,85.049,85.018,1.06998436]
[1773232588053,11.75792778,85.049,85.019,11.76207671]
[1773232588258,7.74830185,85.05,85.02,1.06998436]
[1773232588780,7.74830185,85.06,85.031,1.06998436]
[1773232589441,11.75585441,85.064,85.031,1.06998436]
[1773232589758,11.75439047,85.075,85.041,1.06998436]
[1773232589959,7.74830185,85.07,85.041,1.06998436]
[1773232590444,11.75516345,85.069,85.042,11.7588956]
[1773232590665,11.75516345,85.069,85.043,1.06998436]
[1773232590850,0.90978668,85.081,85.043,1.06998436]
[1773232591030,11.75516345,85.163,85.043,1.06998436]
[1773232591031,0.90978668,85.079,85.043,1.06998436]
[1773232592553,0.90901533,85.069,85.044,11.75861906]
[1773232592853,0.90901533,85.069,85.043,1.06998436]
[1773232593054,0.90901533,85.069,85.035,1.06998436]
[1773232595547,0.90901533,85.069,85.034,41.16000658]
[1773232595548,11.75439179,85.075,85.041,1.06998436]
[1773232595857,11.75383938,85.079,85.041,1.06998436]
[1773232596262,0.90752509,85.078,85.041,1.06998436]
[1773232596461,11.75383938,85.079,85.036,41.15903852]
[1773232596462,3.09709168,85.06,85.036,11.75972529]
[1773232596843,0.90752509,85.062,85.036,11.75972529]
[1773232597246,0.90716317,85.069,85.037,1.06998436]
[1773232597843,0.90716317,85.067,85.039,1.06998436]
[1773232599651,4.00354342,85.06,85.027,1.06998436]
[1773232599867,15.76007665,85.06,85.029,1.06998436]
[1773232600960,15.76007665,85.06,85.032,1.06998436]
[1773232601967,3.09709168,85.07,85.034,1.06998436]
[1773232602167,11.75516345,85.069,85.034,1.06998436]
[1773232604160,0.90507727,85.049,85.025,1.06998436]
[1773232605571,0.90441348,85.059,85.025,1.06998436]
[1773232606164,0.90441348,85.059,85.027,1.06998436]
[1773232606361,11.75668367,85.058,85.027,1.06998436]
[1773232606562,0.9040873,85.066,85.027,1.06998436]
[1773232606766,95.68050461,85.068,85.031,1.06998436]
[1773232607277,95.68050461,85.068,85.041,1.06998436]
[1773232607581,11.75424738,85.076,85.041,1.06998436]
[1773232608580,11.75424738,85.076,85.043,1.06998436]
[1773232609480,12.65737843,85.076,85.043,1.06998436]
[1773232609687,3.09709168,85.07,85.043,1.06998436]
[1773232609878,11.75447257,85.074,85.045,1.04366862]
[1773232610778,3.09709168,85.08,85.045,1.04366862]
[1773232610984,11.75240042,85.089,85.051,1.04366862]
[1773232611479,3.09709168,85.09,85.051,1.04366862]
[1773232611677,11.75107771,85.099,85.061,1.04366862]
[1773232611884,11.75107771,85.099,85.063,1.04366862]
[1773232612071,0.1,85.1,85.071,1.04366862]
[1773232614072,0.1,85.1,85.073,1.04366862]
[1773232614272,0.90131517,85.121,85.082,1.04366862]
[1773232614596,11.7481203,85.12,85.082,1.04366862]
[1773232614775,15.84652715,85.12,85.082,1.04366862]
[1773232614973,1.00131517,85.119,85.082,1.04366862]
[1773232615788,1.00102457,85.109,85.075,1.04366862]
[1773232616282,1.00102457,85.109,85.027,1.176097]
[1773232616283,1.00073731,85.099,85.065,1.04366862]
[1773232617293,41.12421863,85.108,85.071,1.04024757]
[1773232617294,11.74977675,85.108,85.071,1.04024757]
[1773232617494,1.00017266,85.109,85.071,1.04024757]
[1773232617689,0.14216157,85.115,85.081,1.04024757]
[1773232617989,0.14216157,85.112,85.081,1.04024757]
[1773232618170,0.14216157,85.112,85.083,1.04024757]
[1773232618366,1.00017266,85.113,85.083,1.04024757]
[1773232618570,0.99989518,85.119,85.083,1.04024757]
[1773232620089,11.74687826,85.129,85.093,1.04024757]
[1773232620980,0.99935144,85.128,85.093,1.04024757]
[1773232621581,0.99935144,85.128,85.092,41.13195129]
[1773232621582,0.99908509,85.145,85.111,1.04024757]
[1773232621790,0.99908509,85.153,85.111,1.04024757]
[1773232621983,0.14216157,85.152,85.121,1.04024757]
[1773232622189,11.74411913,85.149,85.121,1.04024757]
[1773232622577,0.99882179,85.148,85.121,1.04024757]
[1773232623093,0.99882179,85.139,85.112,1.04024757]
[1773232623272,41.10441696,85.149,85.104,1.04024757]
[1773232623273,0.99856152,85.129,85.104,1.04024757]
[1773232623472,0.99856152,85.129,85.097,12.79154315]
[1773232624396,0.99830424,85.127,85.097,12.79154315]
[1773232625103,0.99830424,85.127,85.061,0.14216157]
[1773232625104,0.99830424,85.119,85.083,1.04024757]
[1773232625899,7.73505494,85.11,85.083,1.04024757]
[1773232626087,0.99804991,85.111,85.083,1.04024757]
[1773232626891,0.99804991,85.111,85.084,11.75309106]
[1773232627084,0.99779851,85.109,85.084,12.79333863]
[1773232627587,11.74888574,85.115,85.085,1.04024757]
[1773232628493,11.74888574,85.115,85.087,1.04024757]
[1773232628703,0.99754999,85.117,85.087,1.04024757]
[1773232628878,7.73505494,85.12,85.087,1.04024757]
[1773232629079,0.99730432,85.139,85.101,1.04024757]
[1773232629713,8.73211642,85.15,85.111,1.04024757]
[1773232630006,0.99706148,85.149,85.111,1.04024757]
[1773232630598,0.99682143,85.147,85.113,1.04024757]
[1773232631793,11.74425705,85.148,85.068,1.13877121]
[1773232631794,7.73505494,85.12,85.068,1.13877121]
[1773232632006,7.73505494,85.12,85.005,47.05567361]
[1773232632007,7.73505494,85.08,85.059,1.13877121]
[1773232632609,7.73505494,85.08,85.04,7.73505494]
[1773232632610,19.48735789,85.09,85.061,1.13877121]
[1773232632929,29.37606233,85.104,85.061,1.13877121]
[1773232632930,11.75161467,85.095,85.061,1.13877121]
[1773232633211,11.75102178,85.099,85.061,1.13877121]
[1773232633423,7.73505494,85.1,85.061,1.13877121]
[1773232633797,11.74977675,85.108,85.061,1.13877121]
[1773232634597,7.73505494,85.12,85.081,1.13877121]
[1773232634807,29.36693976,85.13,85.072,41.1416212]
[1773232634808,7.73505494,85.13,85.091,1.13877121]
[1773232635027,7.73505494,85.14,85.101,1.13877121]
[1773232636299,7.73505494,85.13,85.101,1.13877121]
[1773232636524,7.73505494,85.13,85.091,1.13877121]
[1773232636719,7.73505494,85.14,85.101,1.13877121]
[1773232637098,7.73505494,85.15,85.111,1.13877121]
[1773232637524,7.73505494,85.14,85.101,1.13877121]
[1773232637891,41.10248611,85.153,85.101,1.13877121]
[1773232637892,7.73505494,85.13,85.101,1.13877121]
[1773232638910,7.73505494,85.11,85.083,1.13877121]
[1773232639112,7.73505494,85.12,85.083,1.13877121]
[1773232640338,7.73505494,85.12,85.072,29.38669814]
[1773232640339,7.73505494,85.11,85.073,1.13877121]
[1773232641023,7.73505494,85.11,85.075,1.13877121]
[1773232641210,11.7490152,85.114,85.075,1.13877121]
[1773232641411,11.7490152,85.114,85.081,1.13877121]
[1773232641712,11.74701625,85.128,85.081,1.13877121]
[1773232642031,11.74549853,85.139,85.101,1.13877121]
[1773232643925,11.74549853,85.139,85.103,1.13877121]
[1773232644314,7.73505494,85.13,85.103,1.13877121]
[1773232646230,7.73505494,85.14,85.104,11.750329]
[1773232646612,7.73505494,85.14,85.105,1.13877121]
[1773232647328,41.1000728,85.158,85.105,1.13877121]
[1773232647329,7.73505494,85.15,85.105,1.13877121]
[1773232647532,7.73505494,85.15,85.111,1.13877121]
[1773232647833,7.72869954,85.15,85.111,1.13877121]
[1773232648725,0.14216157,85.157,85.113,1.13877121]
[1773232649234,7.72869954,85.15,85.113,1.13877121]
[1773232651535,11.74411913,85.149,85.115,1.13877121]
[1773232654521,7.72869954,85.13,85.092,1.13877121]
[1773232655639,7.72869954,85.12,85.092,1.13877121]
[1773232656421,95.82266618,85.148,85.073,1.13877121]
[1773232656422,7.72869954,85.11,85.073,1.13877121]
[1773232656621,41.11890412,85.119,85.073,1.13877121]
[1773232657020,95.68050461,85.128,85.101,1.13877121]
[1773232657222,11.88655655,85.147,85.101,1.13877121]
[1773232657433,0.14216157,85.145,85.101,1.13877121]
[1773232658032,7.72869954,85.14,85.101,1.13877121]
[1773232660543,7.72869954,85.14,85.103,1.13877121]
[1773232660544,11.74549853,85.139,85.103,1.13877121]
[1773232661339,11.74549853,85.139,85.111,1.13877121]
[1773232662324,0.14216157,85.145,85.111,1.13877121]
[1773232662325,7.72869954,85.14,85.111,1.13877121]
[1773232663144,7.72869954,85.14,85.113,1.13877121]
[1773232664643,95.68050461,85.146,85.115,1.13877121]
[1773232665846,11.74467085,85.145,85.117,1.13877121]
[1773232666152,7.72869954,85.13,85.098,1.13877121]
[1773232666334,7.72869954,85.13,85.09,7.72869954]
[1773232666335,7.72869954,85.13,85.101,1.13877121]
[1773232667850,11.74687826,85.129,85.101,1.13877121]
[1773232669775,11.74687826,85.129,85.083,1.13877121]
[1773232669776,7.72869954,85.11,85.083,1.13877121]
[1773232670078,7.72869954,85.09,85.059,1.13877121]
[1773232670241,7.72869954,85.1,85.059,1.13877121]
[1773232670869,7.72869954,85.1,85.061,1.13877121]
[1773232671847,11.7510194,85.099,85.063,1.13877121]
[1773232672255,58.73669102,85.126,85.062,11.75613082]
[1773232672256,11.74522263,85.141,85.081,1.13877121]
[1773232672456,7.72869954,85.12,85.081,1.13877121]
[1773232674146,11.74825832,85.119,85.083,1.13877121]
[1773232674472,58.72611315,85.141,85.082,11.75336733]
[1773232674473,7.72869954,85.13,85.091,1.13877121]
[1773232674849,7.72869954,85.12,85.091,1.13877121]
[1773232675266,7.72869954,85.13,85.091,1.13877121]
[1773232675447,7.72869954,85.12,85.091,1.13877121]
[1773232676472,11.74825832,85.119,85.093,1.13877121]
[1773232676962,11.74825832,85.119,85.092,11.75198608]
[1773232677850,11.74825832,85.119,85.071,1.13877121]
[1773232677851,7.72869954,85.1,85.071,1.13877121]
[1773232678470,11.7510194,85.099,85.072,1.13877121]
[1773232679055,11.7510194,85.099,85.073,1.13877121]
[1773232679655,19.47681984,85.12,85.073,1.13877121]
[1773232679956,48.84712059,85.12,85.073,1.13877121]
[1773232684666,48.84712059,85.12,85.075,1.13877121]
[1773232685074,4.82477569,85.154,85.091,1.13877121]
[1773232685368,7.72869954,85.13,85.091,1.13877121]
[1773232686355,7.72869954,85.14,85.091,1.13877121]
[1773232686765,11.74549853,85.139,85.102,1.13877121]
[1773232688065,11.74549853,85.139,85.07,7.72869954]
[1773232688066,1.10952592,85.119,85.07,7.72869954]
[1773232688568,7.72869954,85.11,85.07,7.72869954]
[1773232689281,1.10952592,85.119,85.07,7.72869954]
[1773232689972,11.74825832,85.119,85.081,1.09822984]
[1773232690179,11.74825832,85.119,85.091,1.09822984]
[1773232691477,1.10806078,85.118,85.091,1.09822984]
[1773232692175,11.74853437,85.117,85.091,1.09822984]
[1773232692760,7.72869954,85.11,85.091,1.09822984]
[1773232693161,41.11987029,85.117,85.091,1.09822984]
[1773232697780,11.74853437,85.117,85.093,1.09822984]
[1773232698267,11.74729224,85.126,85.094,1.09822984]
[1773232698688,11.74729224,85.126,85.092,11.75198608]
[1773232698689,8.83280591,85.15,85.11,7.72869954]
[1773232698870,7.72869954,85.15,85.111,1.09822984]
[1773232699183,11.74349602,85.154,85.111,1.09822984]
[1773232699365,11.74349602,85.154,85.121,1.09822984]
[1773232699562,7.72869954,85.15,85.121,1.09822984]
[1773232700777,11.74411913,85.149,85.122,11.74784427]
[1773232701078,11.74411913,85.149,85.123,1.01469644]
[1773232702971,29.35825613,85.155,85.125,1.01469644]
[1773232703673,7.72869954,85.15,85.125,1.01469644]
[1773232705584,11.74301584,85.157,85.127,1.01469644]
[1773232705967,7.72869954,85.15,85.127,1.01469644]
[1773232706168,11.74301584,85.157,85.127,1.01469644]
[1773232707186,0.1,85.16,85.131,1.01469644]
[1773232707692,0.1,85.16,85.133,1.01469644]
[1773232708893,1.1457144,85.17,85.141,1.01469644]
[1773232709087,1.0457144,85.169,85.134,1.01469644]
[1773232709295,1.0457144,85.159,85.134,1.01469644]
[1773232709491,0.1,85.17,85.1,7.7248227]
[1773232709492,7.7248227,85.14,85.1,7.7248227]
[1773232709789,1.0457144,85.139,85.1,7.7248227]
[1773232709988,0.14216157,85.159,85.11,7.7248227]
[1773232709989,1.0457144,85.146,85.11,7.7248227]
[1773232710770,11.74467085,85.145,85.111,11.74936259]
[1773232711192,1.0457144,85.146,85.111,41.12276908]
[1773232711397,2.47215037,105.76,85.111,41.12276908]
[1773232711398,1.0457144,85.168,85.13,7.7248227]
[1773232711697,1.0457144,85.168,85.131,1.01469644]
[1773232712394,0.1,85.17,85.131,1.01469644]
[1773232712590,0.1,85.17,85.151,1.01469644]
[1773232712899,0.1,85.17,85.153,1.01469644]
[1773232713777,11.73873708,85.189,85.161,1.01469644]
[1773232714294,12.78383345,85.193,85.161,1.01469644]
[1773232714592,11.73753848,85.197,85.161,1.01469644]
[1773232715297,1.0457144,85.189,85.163,1.01469644]
[1773232716901,1.0457144,85.187,85.163,1.01469644]
[1773232717194,1.0457144,85.187,85.155,1.01469644]
[1773232717387,8.7705371,85.18,85.155,1.01469644]
[1773232717589,1.0457144,85.18,85.155,1.01469644]
[1773232717783,1.0457144,85.18,85.112,1.17492245]
[1773232717784,1.0457144,85.179,85.129,29.36696399]
[1773232717985,4.13477459,85.17,85.147,1.01469644]
[1773232718385,1.0457144,85.17,85.147,1.01469644]
[1773232718896,1.0457144,85.157,85.119,1.01469644]
[1773232719104,1.0457144,85.147,85.119,1.01469644]
[1773232720097,41.1000728,85.158,85.121,1.01469644]
[1773232720098,1.0457144,85.157,85.121,1.01469644]
[1773232721089,7.72897253,85.15,85.123,1.01469644]
[1773232722987,8.77468693,85.15,85.123,1.01469644]
[1773232723282,8.77468693,85.15,85.119,29.3706458]
[1773232723283,11.74411913,85.149,85.125,1.01469644]
[1773232724918,1.0457144,85.15,85.125,1.01469644]
[1773232725088,11.74274005,85.159,85.125,1.01469644]
[1773232726315,1.0457144,85.162,85.127,1.01469644]
[1773232726890,1.0457144,85.159,85.127,1.01469644]
[1773232728294,1.0457144,85.157,85.129,1.01469644]
[1773232728900,11.74287794,85.158,85.129,1.01469644]
[1773232729899,11.74287794,85.158,85.131,1.12386395]
[1773232731193,1.12490353,85.159,85.123,1.12386395]
[1773232731392,1.12490353,85.139,85.112,1.12386395]
[1773232732408,1.12490353,85.139,85.023,7.72897253]
[1773232732409,7.72897253,85.16,85.121,1.12386395]
[1773232732707,8.85387606,85.16,85.121,1.12386395]
[1773232732899,1.12490353,85.159,85.121,1.12386395]
[1773232733496,1.12490353,85.157,85.123,1.12386395]
[1773232735806,1.12490353,85.155,85.124,12.8714322]
[1773232736208,1.12490353,85.149,85.124,1.12386395]
[1773232737809,1.05746786,85.147,85.117,1.05481501]
[1773232738208,1.05746786,85.139,85.111,11.74936259]
[1773232738395,1.05746786,85.119,85.092,1.05481501]
[1773232739995,11.74839634,85.118,85.093,11.75184797]
[1773232740201,1.05746786,85.117,85.093,11.75184797]
[1773232740597,1.05746786,85.133,85.101,1.05481501]
[1773232740828,58.71280004,85.161,85.11,7.72897253]
[1773232740829,1.05746786,85.142,85.11,7.72897253]
[1773232741022,1.05746786,85.157,85.121,1.05481501]
[1773232741317,1.05746786,85.149,85.121,1.05481501]
[1773232741499,1.05746786,85.149,85.101,1.05481501]
[1773232741893,1.05746786,85.149,85.11,7.72897253]
[1773232741894,11.74425705,85.148,85.11,7.72897253]
[1773232742114,11.74419474,85.149,85.121,1.05481501]
[1773232742316,11.74353395,85.154,85.121,1.05481501]
[1773232742502,1.05746786,85.153,85.121,1.05481501]
[1773232744515,1.05746786,85.151,85.122,11.74784427]
[1773232744718,1.05746786,85.149,85.123,1.05481501]
[1773232745109,1.05746786,85.149,85.122,41.11745494]
[1773232745110,1.05746786,85.159,85.131,1.05481501]
[1773232745303,1.05746786,85.179,85.141,1.05481501]
[1773232746725,1.05746786,85.178,85.143,1.05481501]
[1773232748429,1.05746786,85.178,85.141,11.74518948]
[1773232748430,1.05746786,85.176,85.141,11.74518948]
[1773232749732,41.09090482,85.177,85.141,11.74518948]
[1773232749733,1.05746786,85.169,85.142,1.05481501]
[1773232750322,1.05746786,85.167,85.143,11.74494673]
[1773232750634,1.05746786,85.167,85.143,12.79976174]
[1773232752740,1.05746786,85.165,85.143,1.05481501]
[1773232752934,1.05746786,85.149,85.129,1.05481501]
[1773232754327,1.05746786,85.149,85.124,11.74743969]
[1773232754938,1.05746786,85.147,85.124,11.74743969]
[1773232755315,1.05746786,85.147,85.124,12.8022547]
[1773232756136,11.74453291,85.146,85.124,12.8022547]
[1773232756521,11.74453291,85.146,85.125,1.05481501]
[1773232757522,1.05746786,85.146,85.125,1.05481501]
[1773232757725,1.05746786,85.146,85.111,29.37319151]
[1773232757726,1.05746786,85.146,85.112,1.05481501]
[1773232758640,1.05746786,85.146,85.121,1.05481501]
[1773232758843,11.74274005,85.159,85.121,1.05481501]
[1773232758844,1.05746786,85.158,85.121,1.05481501]
[1773232760445,1.08721807,85.156,85.123,1.05028934]
[1773232760829,3.09120198,85.16,85.123,1.05028934]
[1773232761029,11.74274005,85.159,85.123,1.05028934]
[1773232761850,11.74213923,85.164,85.131,1.05028934]
[1773232762139,29.35087131,85.177,85.131,1.05028934]
[1773232762140,11.74067203,85.174,85.131,1.05028934]
[1773232762347,1.08721807,85.173,85.131,1.05028934]
[1773232762544,1.08721807,85.181,85.141,1.05028934]
[1773232762923,11.73915595,85.185,85.151,1.05028934]
[1773232763749,1.08721807,85.187,85.151,1.05028934]
[1773232763933,12.82623621,85.186,85.151,1.05028934]
[1773232764834,12.82623621,85.186,85.153,1.05028934]
[1773232765350,11.73843568,85.191,85.161,1.05028934]
[1773232767745,11.73843568,85.191,85.163,1.05028934]
[1773232768825,1.08721807,85.191,85.164,11.74205063]
[1773232769025,1.08721807,85.191,85.165,1.05028934]
[1773232769655,1.08721807,85.189,85.165,1.05028934]
[1773232770231,0.14216157,85.209,85.133,23.17463263]
[1773232770232,11.73584949,85.209,85.171,1.05028934]
[1773232770437,1.08721807,85.216,85.181,1.05028934]
[1773232770631,12.82220548,85.216,85.181,1.05028934]
[1773232771039,0.1,85.22,85.191,1.05028934]
[1773232771252,1.08721807,85.218,85.171,1.05028934]
[1773232771746,1.08721807,85.218,85.181,1.05028934]
[1773232772251,1.08721807,85.216,85.183,1.05028934]
[1773232772945,11.73474776,85.217,85.143,29.3623585]
[1773232772946,1.08721807,85.189,85.143,29.3623585]
[1773232773249,1.08721807,85.179,85.144,1.05028934]
[1773232774950,11.74012068,85.178,85.146,1.05028934]
[1773232775130,12.82733875,85.178,85.146,1.05028934]
[1773232775534,11.73945286,85.183,85.146,1.05028934]
[1773232775737,7.71637835,85.18,85.146,1.05028934]
[1773232776034,1.08721807,85.179,85.146,1.05028934]
[1773232778146,1.08721807,85.178,85.148,1.05028934]
[1773232780056,1.08721807,85.199,85.161,1.05028934]
[1773232780441,1.08721807,85.189,85.153,1.05028934]
[1773232780642,1.08721807,85.189,85.16,8.76666769]
[1773232780843,1.08721807,85.189,85.161,1.05028934]
[1773232782054,41.2176348,85.209,85.152,41.1029688]
[1773232782055,1.08721807,85.187,85.155,1.05028934]
[1773232783054,1.08721807,85.187,85.154,11.74342955]
[1773232783253,1.08721807,85.187,85.149,11.74411913]
[1773232783551,1.08721807,85.179,85.149,12.79440847]
[1773232784644,1.08721807,85.177,85.142,1.05028934]
[1773232785648,1.08721807,85.175,85.143,11.74494673]
[1773232787255,12.82679707,85.182,85.151,1.05028934]
[1773232787668,1.08721807,85.198,85.161,1.05028934]
[1773232787960,1.08721807,85.198,85.152,41.1029688]
[1773232787961,1.08721807,85.219,85.181,1.05028934]
[1773232788263,1.08721807,85.219,85.191,1.05028934]
[1773232788442,1.08721807,85.226,85.191,1.05028934]
[1773232789140,1.08721807,85.218,85.191,1.05028934]
[1773232789347,1.08721807,85.209,85.167,1.05028934]
[1773232789551,1.08721807,85.199,85.161,1.05028934]
[1773232789756,1.08886434,85.197,85.162,12.8018336]
[1773232790161,1.08886434,85.197,85.163,1.05950722]
[1773232790870,1.08886434,85.195,85.164,11.74205063]
[1773232791655,11.73764026,85.196,85.164,11.74205063]
[1773232791656,1.08886434,85.189,85.164,11.74205063]
[1773232791853,11.73874254,85.188,85.164,11.74205063]
[1773232792144,1.08886434,85.187,85.155,1.05950722]
[1773232792344,11.73817094,85.193,85.155,1.05950722]
[1773232792546,1.08886434,85.198,85.161,1.05950722]
[1773232792848,12.82636683,85.197,85.161,1.05950722]
[1773232793173,1.08886434,85.196,85.161,1.05950722]
[1773232794744,7.71637835,85.2,85.163,1.05950722]
[1773232794953,1.08886434,85.199,85.163,1.05950722]
[1773232797278,1.08886434,85.197,85.165,1.05950722]
[1773232797459,11.73736472,85.198,85.164,11.74205063]
[1773232797460,1.08886434,85.189,85.164,11.74205063]
[1773232798870,1.08886434,85.189,85.15,7.71637835]
[1773232799059,1.08886434,85.189,85.152,1.14290072]
[1773232799256,1.15186503,85.179,85.152,1.14290072]
[1773232799458,1.15186503,85.177,85.153,11.74356746]
[1773232801283,1.15186503,85.177,85.153,1.14290072]
[1773232801484,11.74012068,85.178,85.153,1.14290072]
[1773232802962,1.15186503,85.185,85.153,1.14290072]
[1773232803458,1.15186503,85.185,85.154,11.74342955]
[1773232803662,1.15186503,85.179,85.147,1.14290072]
[1773232805192,1.15186503,85.187,85.151,1.14290072]
[1773232805483,1.15186503,85.187,85.146,41.1058652]
[1773232805484,1.15186503,85.208,85.171,1.14290072]
[1773232805778,1.15186503,85.206,85.173,1.14290072]
[1773232805961,1.15186503,85.199,85.168,11.74142182]
[1773232806163,51.75417774,85.235,85.168,11.74142182]
[1773232806164,4.82477569,85.235,85.168,11.74142182]
[1773232806388,1.15186503,85.238,85.205,1.14290072]
[1773232806685,11.73171904,85.239,85.168,240.7006553]
[1773232806686,1.15186503,85.229,85.19,7.71637835]
[1773232806865,1.15186503,85.229,85.183,1.14290072]
[1773232807364,1.15186503,85.209,85.181,1.14290072]
[1773232807562,1.15186503,85.207,85.175,1.14290072]
[1773232809874,1.15186503,85.215,85.181,1.14290072]
[1773232811877,1.15186503,85.215,85.182,11.73956939]
[1773232812282,1.15186503,85.215,85.183,1.14290072]
[1773232813384,11.73428419,85.221,85.183,1.14290072]
[1773232813680,7.71637835,85.22,85.183,1.14290072]
[1773232814180,12.88614922,85.221,85.184,41.08752817]
[1773232814483,12.88614922,85.221,85.185,1.14290072]
[1773232815876,95.68050461,85.248,85.184,41.08752817]
[1773232815877,1.15186503,85.236,85.191,1.14290072]
[1773232816071,11.7322696,85.235,85.191,1.14290072]
[1773232816286,1.15186503,85.235,85.192,41.08366981]
[1773232816469,1.15186503,85.235,85.193,1.14290072]
[1773232817894,1.15186503,85.229,85.2,1.14290072]
[1773232818791,1.15186503,85.229,85.202,1.14290072]
[1773232818971,12.88429803,85.234,85.202,1.14290072]